[Event "Titled Tuesday Blitz March 08 Early 2022"]
[White "Bashirli, Nail"]
[Black "Lou, Yiping"]
[WhiteFideId "13406809"]
[BlackFideId "8603928"]
[WhiteElo "2333"]
[BlackElo "2412"]
[Result "1-0"]
[Round "10"]
[TimeControl "180+1"]
[Date "2022.03.08"]
[WhiteClock "0:00:27"]
[BlackClock "0:00:04"]

1. e4 {[%clk 0:02:55]}  e5 {[%clk 0:02:59]} 2. Nc3 {[%clk 0:02:40]}  Nc6 {[%clk 0:02:58]} 3. Nf3 {[%clk 0:02:30]}  Nf6 {[%clk 0:02:56]} 4. Bb5 {[%clk 0:02:26]}  Bb4 {[%clk 0:02:52]} 5. O-O {[%clk 0:02:26]}  O-O {[%clk 0:02:49]} 6. d3 {[%clk 0:02:25]}  d6 {[%clk 0:02:48]} 7. Bg5 {[%clk 0:02:25]}  Bxc3 {[%clk 0:02:45]} 8. bxc3 {[%clk 0:02:26]}  h6 {[%clk 0:02:46]} 9. Bh4 {[%clk 0:02:26]}  a6 {[%clk 0:02:46]} 10. Bxc6 {[%clk 0:02:26]}  bxc6 {[%clk 0:02:45]} 11. h3 {[%clk 0:02:27]}  c5 {[%clk 0:02:39]} 12. Nd2 {[%clk 0:02:27]}  g5 {[%clk 0:02:35]} 13. Bg3 {[%clk 0:02:26]}  Be6 {[%clk 0:02:34]} 14. Re1 {[%clk 0:02:25]}  Kg7 {[%clk 0:02:32]} 15. Nf1 {[%clk 0:02:26]}  Rb8 {[%clk 0:02:19]} 16. Ne3 {[%clk 0:02:26]}  Qd7 {[%clk 0:02:19]} 17. Qf3 {[%clk 0:02:24]}  Ng8 {[%clk 0:02:10]} 18. Red1 {[%clk 0:02:22]}  f5 {[%clk 0:01:58]} 19. exf5 {[%clk 0:02:17]}  Bxf5 {[%clk 0:01:58]} 20. Qe2 {[%clk 0:02:16]}  Bg6 {[%clk 0:01:40]} 21. d4 {[%clk 0:02:15]}  exd4 {[%clk 0:01:20]} 22. cxd4 {[%clk 0:02:15]}  cxd4 {[%clk 0:01:19]} 23. Rxd4 {[%clk 0:02:13]}  Qb5 {[%clk 0:01:16]} 24. Qd2 {[%clk 0:01:57]}  Nf6 {[%clk 0:01:07]} 25. Qc3 {[%clk 0:01:57]}  Qb2 {[%clk 0:00:57]} 26. Qxb2 {[%clk 0:01:46]}  Rxb2 {[%clk 0:00:56]} 27. Rc4 {[%clk 0:01:46]}  Rf7 {[%clk 0:00:53]} 28. f3 {[%clk 0:01:46]}  Re7 {[%clk 0:00:49]} 29. Bf2 {[%clk 0:01:43]}  Rb5 {[%clk 0:00:40]} 30. a4 {[%clk 0:01:42]}  Rbe5 {[%clk 0:00:39]} 31. Nf1 {[%clk 0:01:35]}  Re2 {[%clk 0:00:31]} 32. Rc1 {[%clk 0:01:31]}  c5 {[%clk 0:00:30]} 33. Ng3 {[%clk 0:01:29]}  Rd2 {[%clk 0:00:27]} 34. a5 {[%clk 0:01:14]}  Nd5 {[%clk 0:00:24]} 35. Nf1 {[%clk 0:01:04]}  Rde2 {[%clk 0:00:22]} 36. Rd1 {[%clk 0:01:04]}  Bf7 {[%clk 0:00:12]} 37. Ng3 {[%clk 0:00:59]}  R2e5 {[%clk 0:00:12]} 38. Re4 {[%clk 0:00:59]}  Kf8 {[%clk 0:00:09]} 39. c4 {[%clk 0:00:56]}  Nc3 {[%clk 0:00:08]} 40. Rxe5 {[%clk 0:00:55]}  Rxe5 {[%clk 0:00:08]} 41. Rxd6 {[%clk 0:00:55]}  Bxc4 {[%clk 0:00:08]} 42. Rxh6 {[%clk 0:00:52]}  Ne2+ {[%clk 0:00:08]} 43. Kh2 {[%clk 0:00:51]}  Nxg3 {[%clk 0:00:08]} 44. Kxg3 {[%clk 0:00:52]}  Rf5 {[%clk 0:00:08]} 45. Rc6 {[%clk 0:00:51]}  Bb5 {[%clk 0:00:07]} 46. Bxc5+ {[%clk 0:00:52]}  Kg8 {[%clk 0:00:06]} 47. Rc7 {[%clk 0:00:52]}  Re5 {[%clk 0:00:05]} 48. Bd4 {[%clk 0:00:51]}  Re2 {[%clk 0:00:05]} 49. Rg7+ {[%clk 0:00:50]}  Kf8 {[%clk 0:00:05]} 50. Rxg5 {[%clk 0:00:51]}  Ra2 {[%clk 0:00:06]} 51. Kf4 {[%clk 0:00:44]}  Bf1 {[%clk 0:00:05]} 52. g4 {[%clk 0:00:40]}  Bxh3 {[%clk 0:00:05]} 53. Rc5 {[%clk 0:00:39]}  Bf1 {[%clk 0:00:05]} 54. Kg5 {[%clk 0:00:39]}  Bb5 {[%clk 0:00:04]} 55. Bc3 {[%clk 0:00:39]}  Rf2 {[%clk 0:00:04]} 56. f4 {[%clk 0:00:39]}  Be2 {[%clk 0:00:05]} 57. Rc8+ {[%clk 0:00:33]}  Ke7 {[%clk 0:00:04]} 58. Bb4+ {[%clk 0:00:32]}  Kf7 {[%clk 0:00:04]} 59. Rc7+ {[%clk 0:00:30]}  Ke6 {[%clk 0:00:04]} 60. Re7+ {[%clk 0:00:29]}  Kd5 {[%clk 0:00:04]} 61. Re5+ {[%clk 0:00:27]}  Kd4 {[%clk 0:00:04]} 62. Bc5+ {[%clk 0:00:27]} 1-0


[Site "https://www.chess.com"]

[Event "Titled Tuesday Blitz March 08 Early 2022"]
[White "Batsiashvili, Nino"]
[Black "Maevsky, Nikolay"]
[WhiteFideId "13602993"]
[BlackFideId "4198220"]
[WhiteElo "2192"]
[BlackElo "2126"]
[Result "1-0"]
[Round "10"]
[TimeControl "180+1"]
[Date "2022.03.09"]
[WhiteClock "0:00:14"]
[BlackClock "0:00:04"]

1. d4 {[%clk 0:03:00]}  d5 {[%clk 0:02:58]} 2. c4 {[%clk 0:02:59]}  Nc6 {[%clk 0:02:58]} 3. e3 {[%clk 0:02:55]}  e5 {[%clk 0:02:58]} 4. cxd5 {[%clk 0:02:54]}  Qxd5 {[%clk 0:02:58]} 5. Nc3 {[%clk 0:02:54]}  Bb4 {[%clk 0:02:58]} 6. Bd2 {[%clk 0:02:54]}  Bxc3 {[%clk 0:02:59]} 7. bxc3 {[%clk 0:02:55]}  Qd6 {[%clk 0:02:59]} 8. Bd3 {[%clk 0:02:47]}  Nf6 {[%clk 0:02:57]} 9. Ne2 {[%clk 0:02:47]}  h5 {[%clk 0:02:57]} 10. O-O {[%clk 0:02:29]}  h4 {[%clk 0:02:58]} 11. f4 {[%clk 0:02:29]}  e4 {[%clk 0:02:54]} 12. Bc2 {[%clk 0:02:26]}  Bf5 {[%clk 0:02:52]} 13. c4 {[%clk 0:02:25]}  O-O-O {[%clk 0:02:43]} 14. Nc3 {[%clk 0:02:19]}  Nxd4 {[%clk 0:02:31]} 15. Rf2 {[%clk 0:01:54]}  Nxc2 {[%clk 0:01:55]} 16. Qxc2 {[%clk 0:01:54]}  Qc6 {[%clk 0:01:47]} 17. Nb5 {[%clk 0:01:51]}  Kb8 {[%clk 0:01:44]} 18. Rb1 {[%clk 0:01:43]}  Ng4 {[%clk 0:01:34]} 19. Re2 {[%clk 0:01:39]}  h3 {[%clk 0:01:18]} 20. g3 {[%clk 0:01:16]}  g6 {[%clk 0:00:54]} 21. Bc3 {[%clk 0:01:11]}  Rhe8 {[%clk 0:00:53]} 22. Bd4 {[%clk 0:01:08]}  a6 {[%clk 0:00:52]} 23. Na7 {[%clk 0:01:05]}  Qd7 {[%clk 0:00:29]} 24. Qb2 {[%clk 0:01:04]}  c6 {[%clk 0:00:18]} 25. Qb6 {[%clk 0:01:02]}  Re6 {[%clk 0:00:11]} 26. Rd2 {[%clk 0:00:20]}  Ka8 {[%clk 0:00:08]} 27. Nb5 {[%clk 0:00:16]}  Qxd4 {[%clk 0:00:05]} 28. Rxd4 {[%clk 0:00:14]}  Rxd4 {[%clk 0:00:04]} 29. Qa7# {[%clk 0:00:14]} 1-0


[Site "https://www.chess.com"]

[Event "Titled Tuesday Blitz March 08 Early 2022"]
[White "Bintang, Rasyid A. Hidayat"]
[Black "Ptacnikova, Lenka"]
[WhiteFideId "7105355"]
[BlackFideId "305650"]
[WhiteElo "2358"]
[BlackElo "1923"]
[Result "1-0"]
[Round "10"]
[TimeControl "180+1"]
[Date "2022.03.09"]
[WhiteClock "0:01:48"]
[BlackClock "0:00:02"]

1. d4 {[%clk 0:03:00]}  Nf6 {[%clk 0:02:55]} 2. Bf4 {[%clk 0:03:00]}  d5 {[%clk 0:02:43]} 3. e3 {[%clk 0:03:00]}  c5 {[%clk 0:02:43]} 4. Nd2 {[%clk 0:02:59]}  Nc6 {[%clk 0:02:41]} 5. Ngf3 {[%clk 0:02:59]}  Bg4 {[%clk 0:02:39]} 6. Bb5 {[%clk 0:02:59]}  cxd4 {[%clk 0:02:33]} 7. exd4 {[%clk 0:02:54]}  Qb6 {[%clk 0:02:31]} 8. c4 {[%clk 0:02:36]}  dxc4 {[%clk 0:02:29]} 9. Qa4 {[%clk 0:02:29]}  a6 {[%clk 0:01:54]} 10. Bxc6+ {[%clk 0:02:27]}  Qxc6 {[%clk 0:01:49]} 11. Qxc6+ {[%clk 0:02:25]}  bxc6 {[%clk 0:01:50]} 12. Ne5 {[%clk 0:02:25]}  Rc8 {[%clk 0:01:32]} 13. Ndxc4 {[%clk 0:02:22]}  c5 {[%clk 0:01:31]} 14. Nb6 {[%clk 0:02:18]}  Rd8 {[%clk 0:01:18]} 15. dxc5 {[%clk 0:02:16]}  Rd4 {[%clk 0:01:18]} 16. Be3 {[%clk 0:02:10]}  Rb4 {[%clk 0:01:11]} 17. c6 {[%clk 0:02:10]}  Rxb2 {[%clk 0:00:34]} 18. c7 {[%clk 0:02:06]}  Rc2 {[%clk 0:00:34]} 19. Nxg4 {[%clk 0:02:03]}  Rxc7 {[%clk 0:00:24]} 20. Nxf6+ {[%clk 0:02:01]}  exf6 {[%clk 0:00:24]} 21. O-O {[%clk 0:02:01]}  Ba3 {[%clk 0:00:22]} 22. Nd5 {[%clk 0:01:56]}  Rc4 {[%clk 0:00:17]} 23. Rab1 {[%clk 0:01:55]}  O-O {[%clk 0:00:17]} 24. Rb3 {[%clk 0:01:54]}  Bd6 {[%clk 0:00:14]} 25. g3 {[%clk 0:01:50]}  h5 {[%clk 0:00:12]} 26. Rfb1 {[%clk 0:01:49]}  Kh7 {[%clk 0:00:09]} 27. Bf4 {[%clk 0:01:48]}  Bxf4 {[%clk 0:00:02]} 28. Nxf4 {[%clk 0:01:49]}  g6 {[%clk 0:00:02]} 29. Rb8 {[%clk 0:01:48]} 1-0


[Site "https://www.chess.com"]

[Event "Titled Tuesday Blitz March 08 Early 2022"]
[White "Coto Mederos, Michel"]
[Black "Maksimovic, Bojan"]
[WhiteFideId "3508528"]
[BlackFideId "14408120"]
[WhiteElo "2427"]
[BlackElo "2448"]
[Result "1/2-1/2"]
[Round "10"]
[TimeControl "180+1"]
[Date "2022.03.09"]
[WhiteClock "0:00:07"]
[BlackClock "0:00:17"]

1. c4 {[%clk 0:02:57]}  Nf6 {[%clk 0:03:00]} 2. Nc3 {[%clk 0:02:54]}  d6 {[%clk 0:03:00]} 3. g3 {[%clk 0:02:53]}  e5 {[%clk 0:02:59]} 4. Bg2 {[%clk 0:02:53]}  Be7 {[%clk 0:02:59]} 5. e3 {[%clk 0:02:39]}  O-O {[%clk 0:02:58]} 6. Nge2 {[%clk 0:02:40]}  c6 {[%clk 0:02:56]} 7. d4 {[%clk 0:02:30]}  Nbd7 {[%clk 0:02:56]} 8. O-O {[%clk 0:02:29]}  Qc7 {[%clk 0:02:54]} 9. e4 {[%clk 0:02:29]}  a6 {[%clk 0:02:51]} 10. a4 {[%clk 0:02:23]}  a5 {[%clk 0:02:48]} 11. h3 {[%clk 0:02:21]}  exd4 {[%clk 0:02:48]} 12. Nxd4 {[%clk 0:02:22]}  Nc5 {[%clk 0:02:49]} 13. Be3 {[%clk 0:02:20]}  Be6 {[%clk 0:02:47]} 14. Nxe6 {[%clk 0:02:03]}  fxe6 {[%clk 0:02:47]} 15. f4 {[%clk 0:01:57]}  e5 {[%clk 0:02:43]} 16. f5 {[%clk 0:01:40]}  Nfd7 {[%clk 0:02:43]} 17. Qc2 {[%clk 0:01:36]}  Qd8 {[%clk 0:02:42]} 18. Rad1 {[%clk 0:01:34]}  Kh8 {[%clk 0:02:35]} 19. Rf2 {[%clk 0:01:21]}  Bg5 {[%clk 0:02:34]} 20. Qd2 {[%clk 0:01:03]}  Bxe3 {[%clk 0:02:25]} 21. Qxe3 {[%clk 0:01:04]}  Nb6 {[%clk 0:02:25]} 22. Bf1 {[%clk 0:00:45]}  Nbxa4 {[%clk 0:02:24]} 23. Nxa4 {[%clk 0:00:37]}  Nxa4 {[%clk 0:02:25]} 24. Rfd2 {[%clk 0:00:37]}  Qb6 {[%clk 0:01:59]} 25. Qxb6 {[%clk 0:00:32]}  Nxb6 {[%clk 0:02:00]} 26. Rxd6 {[%clk 0:00:31]}  Na4 {[%clk 0:01:59]} 27. R1d2 {[%clk 0:00:28]}  Nc5 {[%clk 0:01:58]} 28. Bg2 {[%clk 0:00:26]}  Kg8 {[%clk 0:01:36]} 29. g4 {[%clk 0:00:26]}  Kf7 {[%clk 0:01:36]} 30. g5 {[%clk 0:00:26]}  Ke7 {[%clk 0:01:36]} 31. Rd1 {[%clk 0:00:17]}  a4 {[%clk 0:01:34]} 32. Bf3 {[%clk 0:00:16]}  a3 {[%clk 0:01:30]} 33. bxa3 {[%clk 0:00:17]}  Rxa3 {[%clk 0:01:31]} 34. Kg2 {[%clk 0:00:17]}  Ra2+ {[%clk 0:01:30]} 35. Kg3 {[%clk 0:00:17]}  Ra3 {[%clk 0:01:29]} 36. Kg4 {[%clk 0:00:16]}  Rc3 {[%clk 0:01:17]} 37. f6+ {[%clk 0:00:13]}  gxf6 {[%clk 0:01:17]} 38. gxf6+ {[%clk 0:00:14]}  Rxf6 {[%clk 0:01:14]} 39. Rxf6 {[%clk 0:00:13]}  Kxf6 {[%clk 0:01:15]} 40. Rd6+ {[%clk 0:00:13]}  Kg7 {[%clk 0:01:11]} 41. Bg2 {[%clk 0:00:11]}  Rxc4 {[%clk 0:01:07]} 42. Kf5 {[%clk 0:00:11]}  Rc2 {[%clk 0:01:08]} 43. Bh1 {[%clk 0:00:09]}  Rh2 {[%clk 0:01:08]} 44. Bf3 {[%clk 0:00:10]}  Rxh3 {[%clk 0:00:55]} 45. Bg4 {[%clk 0:00:09]}  Rd3 {[%clk 0:00:41]} 46. Kxe5 {[%clk 0:00:07]}  Rxd6 {[%clk 0:00:40]} 47. Kxd6 {[%clk 0:00:08]}  Nxe4+ {[%clk 0:00:41]} 48. Kc7 {[%clk 0:00:08]}  b5 {[%clk 0:00:32]} 49. Kxc6 {[%clk 0:00:09]}  b4 {[%clk 0:00:32]} 50. Bf5 {[%clk 0:00:08]}  Nc3 {[%clk 0:00:26]} 51. Kc5 {[%clk 0:00:09]}  b3 {[%clk 0:00:25]} 52. Kc4 {[%clk 0:00:08]}  Ne2 {[%clk 0:00:20]} 53. Bxh7 {[%clk 0:00:07]}  Kxh7 {[%clk 0:00:17]} 54. Kxb3 {[%clk 0:00:07]} 1/2-1/2


[Site "https://www.chess.com"]

[Event "Titled Tuesday Blitz March 08 Early 2022"]
[White "Decuigniere, Tom"]
[Black "Lauridsen, Jesper Morch"]
[WhiteFideId "26093820"]
[BlackFideId "1401890"]
[WhiteElo "1997"]
[BlackElo "2257"]
[Result "1/2-1/2"]
[Round "10"]
[TimeControl "180+1"]
[Date "2022.03.09"]
[WhiteClock "0:00:19"]
[BlackClock "0:01:04"]

1. c4 {[%clk 0:02:58]}  g6 {[%clk 0:02:59]} 2. g3 {[%clk 0:02:58]}  Bg7 {[%clk 0:02:59]} 3. Bg2 {[%clk 0:02:59]}  d6 {[%clk 0:02:56]} 4. Nc3 {[%clk 0:03:00]}  c5 {[%clk 0:02:56]} 5. d3 {[%clk 0:02:59]}  Nc6 {[%clk 0:02:55]} 6. Bf4 {[%clk 0:02:59]}  Nf6 {[%clk 0:02:50]} 7. Qd2 {[%clk 0:02:59]}  h6 {[%clk 0:02:48]} 8. e4 {[%clk 0:02:47]}  e5 {[%clk 0:02:47]} 9. Be3 {[%clk 0:02:46]}  Ng4 {[%clk 0:02:46]} 10. Nd5 {[%clk 0:02:43]}  Be6 {[%clk 0:02:43]} 11. Ne2 {[%clk 0:02:34]}  Bxd5 {[%clk 0:02:41]} 12. exd5 {[%clk 0:02:31]}  Nxe3 {[%clk 0:02:41]} 13. fxe3 {[%clk 0:02:28]}  Ne7 {[%clk 0:02:38]} 14. O-O {[%clk 0:02:17]}  O-O {[%clk 0:02:32]} 15. Rab1 {[%clk 0:02:16]}  a5 {[%clk 0:02:30]} 16. a3 {[%clk 0:02:16]}  Nf5 {[%clk 0:02:30]} 17. Be4 {[%clk 0:02:10]}  Qg5 {[%clk 0:02:24]} 18. Bxf5 {[%clk 0:02:00]}  gxf5 {[%clk 0:02:23]} 19. Rbd1 {[%clk 0:01:53]}  h5 {[%clk 0:02:17]} 20. e4 {[%clk 0:01:50]}  Qxd2 {[%clk 0:02:15]} 21. Rxd2 {[%clk 0:01:51]}  Bh6 {[%clk 0:02:15]} 22. Rc2 {[%clk 0:01:51]}  Be3+ {[%clk 0:02:12]} 23. Kg2 {[%clk 0:01:51]}  fxe4 {[%clk 0:02:09]} 24. dxe4 {[%clk 0:01:51]}  Kg7 {[%clk 0:01:53]} 25. Rf5 {[%clk 0:01:50]}  Kg6 {[%clk 0:01:53]} 26. a4 {[%clk 0:01:45]}  f6 {[%clk 0:01:51]} 27. b3 {[%clk 0:01:44]}  Rf7 {[%clk 0:01:49]} 28. Kf3 {[%clk 0:01:43]}  Bd4 {[%clk 0:01:44]} 29. Nc1 {[%clk 0:01:37]}  Rh8 {[%clk 0:01:42]} 30. Rg2 {[%clk 0:01:36]}  Rg7 {[%clk 0:01:37]} 31. Nd3 {[%clk 0:01:35]}  Kf7 {[%clk 0:01:35]} 32. Ne1 {[%clk 0:01:26]}  Rg5 {[%clk 0:01:31]} 33. h3 {[%clk 0:01:03]}  Kg6 {[%clk 0:01:29]} 34. Rxg5+ {[%clk 0:00:46]}  fxg5 {[%clk 0:01:28]} 35. Ke2 {[%clk 0:00:42]}  g4 {[%clk 0:01:26]} 36. h4 {[%clk 0:00:29]}  Rf8 {[%clk 0:01:25]} 37. Rh2 {[%clk 0:00:28]}  b6 {[%clk 0:01:22]} 38. Rg2 {[%clk 0:00:28]}  Rf7 {[%clk 0:01:19]} 39. Rh2 {[%clk 0:00:28]}  Bc3 {[%clk 0:01:18]} 40. Rf2 {[%clk 0:00:25]}  Bxe1 {[%clk 0:01:10]} 41. Kxe1 {[%clk 0:00:24]}  Rxf2 {[%clk 0:01:06]} 42. Kxf2 {[%clk 0:00:25]}  Kf6 {[%clk 0:01:04]} 43. Ke2 {[%clk 0:00:19]} 1/2-1/2


[Site "https://www.chess.com"]

[Event "Titled Tuesday Blitz March 08 Early 2022"]
[White "Demin, Vladimir"]
[Black "Janturin, Artur"]
[WhiteFideId "4167457"]
[BlackFideId "4130022"]
[WhiteElo "2508"]
[BlackElo "2338"]
[Result "0-1"]
[Round "10"]
[TimeControl "180+1"]
[Date "2022.03.09"]
[WhiteClock "0:00:16"]
[BlackClock "0:00:21"]

1. d4 {[%clk 0:02:50]}  e6 {[%clk 0:02:59]} 2. e4 {[%clk 0:02:49]}  d5 {[%clk 0:02:59]} 3. Bd3 {[%clk 0:02:48]}  Nf6 {[%clk 0:02:53]} 4. e5 {[%clk 0:02:47]}  Nfd7 {[%clk 0:02:53]} 5. c3 {[%clk 0:02:47]}  b6 {[%clk 0:02:52]} 6. f4 {[%clk 0:02:43]}  Ba6 {[%clk 0:02:51]} 7. Bc2 {[%clk 0:02:42]}  c5 {[%clk 0:02:50]} 8. Ne2 {[%clk 0:02:41]}  Nc6 {[%clk 0:02:48]} 9. a3 {[%clk 0:02:40]}  Rc8 {[%clk 0:02:20]} 10. Be3 {[%clk 0:02:38]}  Qc7 {[%clk 0:01:48]} 11. O-O {[%clk 0:01:15]}  cxd4 {[%clk 0:01:36]} 12. cxd4 {[%clk 0:01:14]}  Bxe2 {[%clk 0:01:31]} 13. Qxe2 {[%clk 0:01:15]}  Nxd4 {[%clk 0:01:31]} 14. Bxd4 {[%clk 0:01:15]}  Qxc2 {[%clk 0:01:31]} 15. Nd2 {[%clk 0:01:16]}  Bc5 {[%clk 0:01:24]} 16. Bxc5 {[%clk 0:01:16]}  Qxc5+ {[%clk 0:01:15]} 17. Kh1 {[%clk 0:01:15]}  O-O {[%clk 0:01:16]} 18. f5 {[%clk 0:01:06]}  exf5 {[%clk 0:01:00]} 19. Rxf5 {[%clk 0:01:05]}  Rce8 {[%clk 0:00:49]} 20. Raf1 {[%clk 0:01:03]}  Qd4 {[%clk 0:00:47]} 21. Nf3 {[%clk 0:01:01]}  Qe4 {[%clk 0:00:46]} 22. Qxe4 {[%clk 0:00:48]}  dxe4 {[%clk 0:00:47]} 23. Ng5 {[%clk 0:00:47]}  Nxe5 {[%clk 0:00:43]} 24. Nxe4 {[%clk 0:00:47]}  f6 {[%clk 0:00:39]} 25. Nc3 {[%clk 0:00:44]}  Rd8 {[%clk 0:00:38]} 26. R5f2 {[%clk 0:00:42]}  Rd7 {[%clk 0:00:34]} 27. h3 {[%clk 0:00:42]}  Rfd8 {[%clk 0:00:34]} 28. Kh2 {[%clk 0:00:41]}  a6 {[%clk 0:00:32]} 29. Kg3 {[%clk 0:00:39]}  b5 {[%clk 0:00:31]} 30. Kf4 {[%clk 0:00:39]}  Kf7 {[%clk 0:00:29]} 31. Re2 {[%clk 0:00:33]}  Rd2 {[%clk 0:00:25]} 32. Ke4 {[%clk 0:00:18]}  Rxe2+ {[%clk 0:00:23]} 33. Nxe2 {[%clk 0:00:19]}  Nc4 {[%clk 0:00:21]} 34. b3 {[%clk 0:00:16]}  Nd2+ {[%clk 0:00:21]} 0-1


[Site "https://www.chess.com"]

[Event "Titled Tuesday Blitz March 08 Early 2022"]
[White "Donchenko, Alexander"]
[Black "Chigaev, Maksim"]
[WhiteFideId "24603295"]
[BlackFideId "4108116"]
[WhiteElo "2539"]
[BlackElo "2502"]
[Result "0-1"]
[Round "10"]
[TimeControl "180+1"]
[Date "2022.03.08"]
[WhiteClock "0:00:22"]
[BlackClock "0:00:14"]

1. e4 {[%clk 0:03:00]}  e5 {[%clk 0:02:43]} 2. Nf3 {[%clk 0:03:01]}  Nc6 {[%clk 0:02:44]} 3. Bb5 {[%clk 0:03:01]}  a6 {[%clk 0:02:44]} 4. Ba4 {[%clk 0:03:01]}  Nf6 {[%clk 0:02:45]} 5. O-O {[%clk 0:03:01]}  Be7 {[%clk 0:02:45]} 6. d3 {[%clk 0:03:01]}  d6 {[%clk 0:02:46]} 7. c3 {[%clk 0:03:00]}  O-O {[%clk 0:02:46]} 8. Re1 {[%clk 0:02:59]}  Re8 {[%clk 0:02:46]} 9. Nbd2 {[%clk 0:02:58]}  Bf8 {[%clk 0:02:46]} 10. Nf1 {[%clk 0:02:56]}  h6 {[%clk 0:02:47]} 11. Ng3 {[%clk 0:02:54]}  b5 {[%clk 0:02:47]} 12. Bc2 {[%clk 0:02:52]}  Ne7 {[%clk 0:02:39]} 13. d4 {[%clk 0:02:50]}  Ng6 {[%clk 0:02:37]} 14. Nf5 {[%clk 0:02:44]}  Bb7 {[%clk 0:02:20]} 15. dxe5 {[%clk 0:02:35]}  dxe5 {[%clk 0:02:07]} 16. Qxd8 {[%clk 0:02:17]}  Raxd8 {[%clk 0:02:08]} 17. h3 {[%clk 0:02:13]}  a5 {[%clk 0:01:57]} 18. Ng3 {[%clk 0:02:03]}  Nf4 {[%clk 0:01:41]} 19. Be3 {[%clk 0:02:01]}  Nd3 {[%clk 0:01:38]} 20. Red1 {[%clk 0:01:53]}  Nxb2 {[%clk 0:01:36]} 21. Rxd8 {[%clk 0:01:53]}  Rxd8 {[%clk 0:01:37]} 22. Nxe5 {[%clk 0:01:42]}  Bd6 {[%clk 0:01:27]} 23. f4 {[%clk 0:01:37]}  Bxe5 {[%clk 0:01:16]} 24. fxe5 {[%clk 0:01:38]}  Nd7 {[%clk 0:01:02]} 25. Rb1 {[%clk 0:01:21]}  Nc4 {[%clk 0:01:00]} 26. Bc1 {[%clk 0:01:19]}  Bc6 {[%clk 0:00:49]} 27. Nf5 {[%clk 0:01:17]}  Ndxe5 {[%clk 0:00:26]} 28. Ne7+ {[%clk 0:01:17]}  Kh7 {[%clk 0:00:26]} 29. Nxc6 {[%clk 0:01:17]}  Nxc6 {[%clk 0:00:27]} 30. Rxb5 {[%clk 0:01:17]}  N6e5 {[%clk 0:00:28]} 31. Rc5 {[%clk 0:01:12]}  c6 {[%clk 0:00:24]} 32. Bb3 {[%clk 0:00:53]}  f6 {[%clk 0:00:23]} 33. Kh2 {[%clk 0:00:39]}  Nd2 {[%clk 0:00:18]} 34. Bxd2 {[%clk 0:00:34]}  Rxd2 {[%clk 0:00:17]} 35. Rxa5 {[%clk 0:00:35]}  h5 {[%clk 0:00:17]} 36. a4 {[%clk 0:00:24]}  h4 {[%clk 0:00:17]} 37. Ra8 {[%clk 0:00:24]}  g5 {[%clk 0:00:16]} 38. a5 {[%clk 0:00:22]}  Rb2 {[%clk 0:00:14]} 39. Be6 {[%clk 0:00:22]}  Nf3+ {[%clk 0:00:14]} 0-1


[Site "https://www.chess.com"]

[Event "Titled Tuesday Blitz March 08 Early 2022"]
[White "Gabrielian, Artur"]
[Black "Bodnaruk, Anastasia"]
[WhiteFideId "4131002"]
[BlackFideId "4181751"]
[WhiteElo "2440"]
[BlackElo "2393"]
[Result "0-1"]
[Round "10"]
[TimeControl "180+1"]
[Date "2022.03.09"]
[WhiteClock "0:00:06"]
[BlackClock "0:00:05"]

1. e4 {[%clk 0:03:00]}  c5 {[%clk 0:02:59]} 2. Nc3 {[%clk 0:03:00]}  d6 {[%clk 0:02:59]} 3. Nf3 {[%clk 0:02:59]}  e5 {[%clk 0:02:57]} 4. Bc4 {[%clk 0:02:57]}  Be7 {[%clk 0:02:57]} 5. d3 {[%clk 0:02:57]}  Nf6 {[%clk 0:02:53]} 6. Nd2 {[%clk 0:02:52]}  Nc6 {[%clk 0:02:50]} 7. Nf1 {[%clk 0:02:52]}  h6 {[%clk 0:02:46]} 8. Ne3 {[%clk 0:02:51]}  Be6 {[%clk 0:02:46]} 9. O-O {[%clk 0:02:47]}  O-O {[%clk 0:02:45]} 10. Ncd5 {[%clk 0:02:40]}  Na5 {[%clk 0:02:41]} 11. Nxf6+ {[%clk 0:02:40]}  Bxf6 {[%clk 0:02:41]} 12. Bd5 {[%clk 0:02:40]}  Nc6 {[%clk 0:02:37]} 13. c3 {[%clk 0:02:33]}  Bg5 {[%clk 0:02:32]} 14. Bxe6 {[%clk 0:02:00]}  fxe6 {[%clk 0:02:31]} 15. a4 {[%clk 0:01:58]}  a6 {[%clk 0:02:17]} 16. Qb3 {[%clk 0:01:49]}  Qe7 {[%clk 0:02:13]} 17. Nc4 {[%clk 0:01:45]}  Bxc1 {[%clk 0:02:01]} 18. Raxc1 {[%clk 0:01:44]}  Rf7 {[%clk 0:02:00]} 19. Rce1 {[%clk 0:01:27]}  Rb8 {[%clk 0:01:58]} 20. a5 {[%clk 0:01:26]}  Qc7 {[%clk 0:01:50]} 21. Qa3 {[%clk 0:01:22]}  Rbf8 {[%clk 0:01:47]} 22. Re3 {[%clk 0:01:20]}  d5 {[%clk 0:01:37]} 23. Nb6 {[%clk 0:01:14]}  Qd6 {[%clk 0:01:23]} 24. Ree1 {[%clk 0:00:55]}  Kh7 {[%clk 0:01:10]} 25. Qa2 {[%clk 0:00:50]}  Rd8 {[%clk 0:01:07]} 26. h3 {[%clk 0:00:49]}  Na7 {[%clk 0:00:50]} 27. Qb3 {[%clk 0:00:47]}  Nc6 {[%clk 0:00:43]} 28. Qa3 {[%clk 0:00:46]}  Na7 {[%clk 0:00:40]} 29. exd5 {[%clk 0:00:41]}  exd5 {[%clk 0:00:40]} 30. c4 {[%clk 0:00:42]}  d4 {[%clk 0:00:35]} 31. Nd5 {[%clk 0:00:33]}  Nc6 {[%clk 0:00:35]} 32. Rb1 {[%clk 0:00:25]}  Nb4 {[%clk 0:00:32]} 33. Nxb4 {[%clk 0:00:24]}  cxb4 {[%clk 0:00:32]} 34. Qb3 {[%clk 0:00:25]}  Qc5 {[%clk 0:00:29]} 35. Ra1 {[%clk 0:00:24]}  e4 {[%clk 0:00:22]} 36. dxe4 {[%clk 0:00:23]}  d3 {[%clk 0:00:23]} 37. Rad1 {[%clk 0:00:22]}  Rfd7 {[%clk 0:00:20]} 38. Rd2 {[%clk 0:00:19]}  Rd4 {[%clk 0:00:20]} 39. Re1 {[%clk 0:00:17]}  Qxc4 {[%clk 0:00:18]} 40. Qxc4 {[%clk 0:00:16]}  Rxc4 {[%clk 0:00:18]} 41. e5 {[%clk 0:00:15]}  Rc2 {[%clk 0:00:17]} 42. Red1 {[%clk 0:00:16]}  Rxd2 {[%clk 0:00:14]} 43. Rxd2 {[%clk 0:00:16]}  Kg6 {[%clk 0:00:14]} 44. f4 {[%clk 0:00:15]}  Kf5 {[%clk 0:00:15]} 45. g3 {[%clk 0:00:15]}  g5 {[%clk 0:00:14]} 46. fxg5 {[%clk 0:00:16]}  hxg5 {[%clk 0:00:15]} 47. Kf2 {[%clk 0:00:16]}  Kxe5 {[%clk 0:00:15]} 48. Ke3 {[%clk 0:00:17]}  Rd5 {[%clk 0:00:14]} 49. Rxd3 {[%clk 0:00:17]}  Rxa5 {[%clk 0:00:14]} 50. Rd7 {[%clk 0:00:17]}  Ra2 {[%clk 0:00:12]} 51. Rxb7 {[%clk 0:00:15]}  Rxb2 {[%clk 0:00:12]} 52. Rg7 {[%clk 0:00:11]}  Rb3+ {[%clk 0:00:12]} 53. Kf2 {[%clk 0:00:10]}  Kf6 {[%clk 0:00:12]} 54. Ra7 {[%clk 0:00:09]}  Ra3 {[%clk 0:00:13]} 55. h4 {[%clk 0:00:09]}  gxh4 {[%clk 0:00:12]} 56. gxh4 {[%clk 0:00:10]}  a5 {[%clk 0:00:13]} 57. Rb7 {[%clk 0:00:07]}  b3 {[%clk 0:00:13]} 58. Ke3 {[%clk 0:00:06]}  a4 {[%clk 0:00:12]} 59. Kf4 {[%clk 0:00:06]}  Ra1 {[%clk 0:00:12]} 60. Rb6+ {[%clk 0:00:06]}  Kg7 {[%clk 0:00:12]} 61. Kg5 {[%clk 0:00:06]}  Rg1+ {[%clk 0:00:11]} 62. Kh5 {[%clk 0:00:06]}  Rd1 {[%clk 0:00:07]} 63. Rb4 {[%clk 0:00:04]}  Ra1 {[%clk 0:00:06]} 64. Rb7+ {[%clk 0:00:04]}  Kf6 {[%clk 0:00:06]} 65. Rb6+ {[%clk 0:00:04]}  Ke5 {[%clk 0:00:05]} 66. Kh6 {[%clk 0:00:05]}  Kd4 {[%clk 0:00:05]} 67. h5 {[%clk 0:00:05]}  Kc3 {[%clk 0:00:05]} 68. Kh7 {[%clk 0:00:06]}  b2 {[%clk 0:00:04]} 69. Rc6+ {[%clk 0:00:06]}  Kd4 {[%clk 0:00:04]} 70. Rd6+ {[%clk 0:00:06]}  Kc5 {[%clk 0:00:05]} 0-1


[Site "https://www.chess.com"]